bitfinex/quotes_SOLUSD_20241231
["timestamp","ask_amount","ask_price","bid_price","bid_amount"]
[1735607873448,8.3957,189.86,189.79,0.79007157]
[1735607874839,8.3957,189.86,189.78,0.79008828]
[1735607875238,8.3957,189.86,189.76,15.03938151]
[1735607875563,8.3957,189.86,189.77,0.79020053]
[1735607875942,8.3957,189.86,189.77,15.82958204]
[1735607876453,8.3957,189.86,189.75,15.82954696]
[1735607877237,26.410484,189.85,189.74,15.03938151]
[1735607877438,20.0,189.82,189.72,15.82959809]
[1735607877657,23.776884,189.81,189.71,15.03938151]
[1735607877862,23.776884,189.81,189.7,15.03938151]
[1735607878856,23.776884,189.81,189.71,15.03938151]
[1735607880075,3.96584266,189.84,189.73,15.03938151]
[1735607880281,3.96584266,189.84,189.74,15.03938151]
[1735607880447,3.96584266,189.84,189.72,0.79043709]
[1735607880448,3.96584266,189.84,189.75,15.03938151]
[1735607880648,3.96584266,189.84,189.76,15.03938151]
[1735607880859,23.776884,189.84,189.76,15.03938151]
[1735607881062,16.3096996,189.86,189.77,15.82960914]
[1735607881366,8.3957,189.86,189.77,15.82960914]
[1735607881759,8.3957,189.86,189.76,15.03938151]
[1735607882144,8.3957,189.86,189.78,15.03938151]
[1735607885073,8.3957,189.86,189.76,15.03938151]
[1735607886059,23.776884,189.85,189.75,15.03938151]
[1735607886243,11.0293,189.86,189.75,15.03938151]
[1735607886445,11.0293,189.86,189.76,15.03938151]
[1735607886663,8.3957,189.86,189.77,15.03938151]
[1735607888770,8.3957,189.86,189.78,15.03938151]
[1735607889961,8.3957,189.86,189.77,0.79016238]
[1735607890162,8.3957,189.86,189.77,15.82954389]
[1735607890365,8.3957,189.86,189.78,15.03938151]
[1735607890570,8.3957,189.86,189.78,15.82945589]
[1735607891571,8.3957,189.86,189.78,15.03938151]
[1735607891866,8.3957,189.86,189.77,15.03938151]
[1735607892372,8.3957,189.86,189.78,15.03938151]
[1735607892671,8.3957,189.86,189.79,15.03938151]
[1735607895468,8.3957,189.86,189.8,15.03938151]
[1735607896063,2.1632,189.86,189.82,15.03938151]
[1735607896707,2.1632,189.86,189.83,15.03938151]
[1735607896886,8.439,189.9,189.84,15.03938151]
[1735607897076,8.439,189.9,189.83,15.03938151]
[1735607897984,8.439,189.9,189.84,15.03938151]
[1735607898152,2.1098,189.9,189.85,15.03938151]
[1735607898474,12.40484266,189.94,189.86,15.82917385]
[1735607898675,12.40484266,189.94,189.87,15.03938151]
[1735607898880,8.439,189.94,189.87,15.03938151]
[1735607899982,2.1098,189.94,189.89,15.03938151]
[1735607903383,2.1098,189.94,189.9,15.82904775]
[1735607903585,2.1008,189.98,189.9,15.82904775]
[1735607903962,2.1008,189.98,189.91,15.03938151]
[1735607904362,2.1008,189.98,189.92,15.03938151]
[1735607904564,2.1008,189.98,189.94,15.03938151]
[1735607904779,2.1008,190.03,189.95,15.03938151]
[1735607905188,2.1008,190.03,189.97,15.03938151]
[1735607905392,2.1008,190.03,189.98,15.03938151]
[1735607905685,2.1008,190.03,189.97,15.03938151]
[1735607905886,2.1008,190.03,189.95,15.03938151]
[1735607906064,23.776884,190.02,189.92,15.82869329]
[1735607906271,23.776884,190.02,189.84,2.1539]
[1735607906272,23.776884,190.02,189.89,15.82893923]
[1735607906785,23.776884,190.0,189.89,0.78955772]
[1735607906989,23.776884,190.0,189.88,15.03938151]
[1735607907191,23.776884,190.0,189.89,15.03938151]
[1735607908202,6.3399,189.99,189.89,15.03938151]
[1735607908488,20.0,189.96,189.86,15.03938151]
[1735607909271,23.776884,189.95,189.85,15.03938151]
[1735607910371,23.776884,189.95,189.87,15.03938151]
[1735607911188,23.776884,189.95,189.86,15.03938151]
[1735607911783,20.0,189.92,189.84,15.03938151]
[1735607911979,8.4407,189.91,189.82,15.03938151]
[1735607912384,8.4407,189.91,189.86,15.03938151]
[1735607912876,8.4407,189.91,189.87,15.03938151]
[1735607913566,8.4407,189.91,189.85,15.03938151]
[1735607913971,8.4407,189.91,189.86,15.03938151]
[1735607914387,8.4407,189.91,189.87,15.03938151]
[1735607914585,8.4407,189.91,189.86,15.03938151]
[1735607914785,8.4407,189.91,189.88,15.03938151]
[1735607914969,2.1008,189.91,189.88,15.03938151]
[1735607915164,2.1008,189.91,189.87,15.03938151]
[1735607915687,2.1008,189.91,189.83,0.78978546]
[1735607915688,6.0777,189.95,189.88,15.03938151]
[1735607915888,6.0777,189.95,189.91,15.03938151]
[1735607916270,6.0777,189.95,189.9,15.03938151]
[1735607916697,6.0777,189.95,189.89,15.03938151]
[1735607916869,6.0777,189.95,189.9,15.03938151]
[1735607918898,6.0777,189.95,189.86,15.03938151]
[1735607919696,6.0777,189.95,189.87,15.03938151]
[1735607919870,6.0777,189.95,189.88,15.03938151]
[1735607920074,6.0777,189.95,189.89,15.03938151]
[1735607920272,6.0777,189.95,189.88,15.03938151]
[1735607920681,6.0777,189.95,189.87,15.03938151]
[1735607921198,6.0777,189.95,189.86,15.03938151]
[1735607924706,6.0777,189.95,189.85,15.03938151]
[1735607925121,6.0777,189.95,189.86,15.03938151]
[1735607928297,6.0777,189.95,189.87,15.03938151]
[1735607929611,6.0777,189.95,189.86,15.03938151]
[1735607931607,6.0777,189.95,189.87,15.03938151]
[1735607932214,6.0777,189.95,189.89,15.03938151]
[1735607932385,6.54,190.0,189.9,0.78963312]
[1735607932580,6.54,190.0,189.96,15.03938151]
[1735607932786,2.1362,190.01,189.96,15.03938151]
[1735607933211,2.1362,190.01,189.95,15.03938151]
[1735607933392,2.1362,190.01,189.93,15.03938151]
[1735607933707,22.1362,190.01,189.92,15.8287667]
[1735607933887,22.1362,190.01,189.92,15.03938151]
[1735607934287,22.1362,190.01,189.9,15.03938151]
[1735607934514,26.408384,190.0,189.89,15.03938151]
[1735607935295,22.1362,190.01,189.9,15.03938151]
[1735607936387,22.1362,190.01,189.91,15.03938151]
[1735607936683,24.7677,190.01,189.91,15.03938151]
[1735607937092,23.776884,190.0,189.86,20.0]
[1735607937298,23.776884,190.0,189.86,15.03938151]
[1735607937299,6.54,189.96,189.86,15.03938151]
[1735607939213,6.54,189.96,189.87,15.03938151]
[1735607939412,6.54,189.96,189.88,15.8291201]
[1735607939587,6.54,189.96,189.88,15.03938151]
[1735607940493,6.54,189.96,189.87,15.03938151]
[1735607942115,6.54,189.96,189.86,15.03938151]
[1735607943116,6.54,189.96,189.87,15.03938151]
[1735607943502,6.54,189.96,189.88,15.82909713]
[1735607943818,6.54,189.96,189.88,15.03938151]
[1735607945113,6.54,189.96,189.87,15.03938151]
[1735607945306,2.1362,189.95,189.86,15.03938151]
[1735607945506,2.1362,189.95,189.85,15.03938151]
[1735607945713,2.1362,189.95,189.87,15.03938151]
[1735607946119,2.1362,189.95,189.88,15.03938151]
[1735607946924,8.4254,190.01,189.92,15.03938151]
[1735607947095,8.4254,190.01,189.94,15.03938151]
[1735607947291,8.4254,190.01,189.96,15.03938151]
[1735607947490,8.4254,190.01,189.97,0.78943465]
[1735607947712,7.9139996,190.05,189.99,15.03938151]
[1735607947895,7.9139996,190.05,189.96,0.78923059]
[1735607948099,7.9139996,190.05,189.96,15.8286121]
[1735607948406,7.9139996,190.05,189.96,10.39509077]
[1735607948904,8.4254,190.06,189.96,10.39509077]
[1735607949415,8.4254,190.06,189.97,9.60586018]
[1735607949922,8.4254,190.06,189.98,9.60586018]
[1735607950298,8.4254,190.06,189.97,16.67260991]
[1735607950511,8.4254,190.06,189.96,17.46189709]
[1735607950820,8.4254,190.06,189.98,16.67260991]
[1735607951519,8.4254,190.06,189.97,16.67260991]
[1735607951819,8.4254,190.06,189.96,16.67260991]
[1735607952121,8.4254,190.06,189.95,16.67260991]
[1735607952517,2.6308,190.05,189.94,16.67260991]
[1735607953219,2.6308,190.05,189.95,16.67260991]
[1735607954824,8.4254,190.06,189.96,16.67260991]
[1735607955123,8.4254,190.06,189.98,16.67260991]
[1735607956016,8.4254,190.06,189.97,0.78932599]
[1735607956219,8.4254,190.06,189.99,16.67260991]
[1735607957410,8.4254,190.06,190.0,16.67260991]
[1735607957609,8.4254,190.06,189.99,16.67260991]
[1735607958001,8.4254,190.06,189.98,16.67260991]
[1735607958302,8.4254,190.06,189.97,17.46183355]
[1735607958616,8.4254,190.06,189.98,16.67260991]
[1735607960335,8.4254,190.06,189.96,16.67260991]
[1735607960622,20.0,190.03,189.91,17.46190248]
[1735607961324,20.0,190.03,189.93,16.67260991]
[1735607961537,20.0,190.03,189.95,16.67260991]
[1735607961907,20.0,190.03,189.94,17.46213889]
[1735607962112,20.0,190.03,189.93,16.67260991]
[1735607963527,20.0,190.03,189.92,0.78945581]
[1735607963528,26.408184,190.02,189.92,0.78945581]
[1735607963706,1.9884,190.01,189.92,16.67260991]
[1735607964032,1.9884,190.01,189.93,16.67260991]
[1735607964250,1.9884,190.01,189.92,16.67260991]
[1735607964938,1.9884,190.01,189.93,0.78949837]
[1735607965539,1.9884,190.01,189.92,16.67260991]
[1735607966130,1.9884,190.01,189.93,0.78951489]
[1735607967127,1.9884,190.01,189.89,0.78948475]
[1735607967318,9.1749,190.0,189.88,16.67260991]
[1735607967518,9.1749,190.0,189.87,16.67260991]
[1735607967723,9.1749,190.0,189.88,16.67260991]
[1735607968634,9.1749,190.0,189.89,0.78964226]
[1735607968933,6.5434,190.0,189.92,16.67260991]
[1735607969111,6.5434,190.0,189.93,0.78950835]
[1735607969312,6.5434,190.0,189.92,16.67260991]
[1735607969628,6.5434,190.0,189.89,23.776884]
[1735607969814,6.5434,190.0,189.95,16.67260991]
[1735607970020,6.5434,190.0,189.94,16.67260991]
[1735607970336,6.5434,190.0,189.92,16.67260991]
[1735607970837,6.5434,190.0,189.9,0.78947886]
[1735607970838,6.5434,190.0,189.91,16.67260991]
[1735607971019,6.5434,190.0,189.89,16.67260991]
[1735607971414,6.5434,190.0,189.9,16.67260991]
[1735607971823,6.5434,190.0,189.93,16.67260991]
[1735607972322,6.5434,190.0,189.92,9.60905852]
[1735607972935,6.5434,190.0,189.9,29.60905852]
[1735607973135,6.5434,190.0,189.89,9.60905852]
[1735607973322,6.5434,190.0,189.84,15.96461161]
[1735607973643,6.5434,190.0,189.9,9.60905852]
[1735607974140,6.5434,190.0,189.89,9.60905852]
[1735607974338,6.5434,190.0,189.9,9.60905852]
[1735607974522,6.5434,190.0,189.91,9.60905852]
[1735607975136,6.5434,190.0,189.92,10.39861033]
[1735607975341,6.5434,190.0,189.95,9.60905852]
[1735607975837,6.5434,190.0,189.94,9.60905852]
[1735607976438,6.5434,190.0,189.92,9.60905852]
[1735607976737,6.5434,190.0,189.93,9.60905852]
[1735607977917,6.5434,190.0,189.9,0.7894549]
[1735607978142,6.5434,190.0,189.88,9.60905852]
[1735607978436,2.6317,189.99,189.87,10.39854088]
[1735607979734,2.6317,189.99,189.88,9.60905852]
[1735607982448,2.6317,189.99,189.89,9.60905852]
[1735607983445,23.776884,189.98,189.89,9.60905852]
[1735607984726,6.5434,190.0,189.9,9.60905852]
[1735607984926,6.5434,190.0,189.93,9.60905852]
[1735607985237,6.5434,190.0,189.94,9.60905852]
[1735607986327,6.5434,190.0,189.96,9.60905852]
[1735607986654,8.7428,190.05,189.95,0.78945417]
[1735607986823,8.7428,190.05,189.97,9.60905852]
[1735607987023,8.7428,190.05,189.96,9.60905852]
[1735607987247,8.7428,190.05,189.95,10.39851269]
[1735607987825,8.7428,190.05,189.96,9.60905852]
[1735607988225,8.7428,190.05,189.97,9.60905852]
[1735607989954,8.7428,190.05,189.98,9.60905852]
[1735607991334,8.7428,190.05,189.99,9.60905852]
[1735607991657,8.7428,190.05,189.98,9.60905852]
[1735607992035,8.7428,190.05,189.94,0.78940141]
[1735607992245,8.7428,190.05,189.94,20.78940141]
[1735607992448,8.7428,190.05,189.98,9.60905852]
[1735607995158,8.7428,190.05,189.96,9.60905852]
[1735607995338,8.7428,190.05,189.92,0.78928001]
[1735607995541,20.0,190.02,189.93,9.60905852]
[1735607995744,20.0,190.02,189.91,9.60905852]
[1735607996638,20.0,190.02,189.92,0.78952189]
[1735607996853,20.0,190.02,189.92,9.60905852]
[1735607997741,20.0,190.02,189.95,9.60905852]
[1735607997936,20.0,190.02,189.96,9.60905852]
[1735607998137,8.7428,190.05,189.97,10.39846143]
[1735607998337,8.7428,190.05,189.98,9.60905852]
[1735607998546,8.7428,190.05,189.99,10.398331]
[1735607999459,8.7428,190.05,189.99,9.60905852]
[1735608000663,8.7428,190.05,189.98,9.60905852]
[1735608000868,8.7428,190.05,189.97,9.60905852]
[1735608001535,8.7428,190.05,189.98,9.60905852]
[1735608001965,8.7428,190.05,189.97,9.60905852]
[1735608002460,8.7428,190.05,189.94,0.78924303]
[1735608002763,20.0,190.01,189.9,10.39843835]
[1735608002971,20.0,190.01,189.9,0.78937983]
[1735608003182,8.5542,190.0,189.88,9.60905852]
[1735608003454,23.776884,189.99,189.87,9.60905852]
[1735608004264,23.776884,189.99,189.87,15.02340234]
[1735608004453,20.0,189.96,189.87,15.02340234]
[1735608004847,11.1857,190.0,189.9,15.02340234]
[1735608005240,8.5542,190.0,189.92,15.02340234]
[1735608005463,8.5542,190.0,189.93,15.81298021]
[1735608005660,8.5542,190.0,189.91,15.02340234]
[1735608005838,8.5542,190.0,189.92,15.02340234]
[1735608006037,8.5542,190.0,189.9,15.02340234]
[1735608006261,8.5542,190.0,189.89,15.02340234]
[1735608006659,23.776884,189.99,189.88,15.02340234]
[1735608006968,20.0,189.96,189.85,15.02340234]
[1735608007147,2.0675,189.95,189.85,15.02340234]
[1735608007745,2.0675,189.95,189.86,15.02340234]
[1735608008862,2.0675,189.95,189.87,15.81323191]
[1735608009059,2.0675,189.95,189.87,15.02340234]
[1735608009961,2.0675,189.95,189.85,15.02340234]
[1735608010144,2.0675,189.95,189.86,15.02340234]
[1735608010350,2.0675,189.95,189.86,15.81325505]
[1735608011154,2.0675,189.95,189.87,15.02340234]
[1735608011356,2.0675,189.95,189.87,15.81316121]
[1735608012152,2.0675,189.95,189.88,15.02340234]
[1735608012867,2.0675,189.95,189.83,13.95879119]
[1735608012868,2.0675,189.95,189.91,15.02340234]
[1735608013170,12.61870493,190.0,189.92,15.81295755]
[1735608013354,12.61870493,190.0,189.91,15.02340234]
[1735608013554,8.6585,190.0,189.91,15.02340234]
[1735608015050,8.6585,190.0,189.92,15.02340234]
[1735608015251,8.6585,190.0,189.91,15.02340234]
[1735608015464,8.6585,190.0,189.9,15.02340234]
[1735608015858,8.6585,190.0,189.91,15.02340234]
[1735608016565,8.6585,190.0,189.92,15.02340234]
[1735608017470,8.6585,190.0,189.91,15.02340234]
[1735608017649,8.6585,190.0,189.88,0.78962442]
[1735608017850,8.6585,190.0,189.92,15.02340234]
[1735608018349,8.6585,190.0,189.9,15.02340234]
[1735608018758,8.6585,190.0,189.91,15.02340234]
[1735608020371,8.6585,190.0,189.9,15.02340234]
[1735608020752,8.6585,190.0,189.91,15.02340234]
[1735608023275,8.6585,190.0,189.92,15.02340234]
[1735608023463,8.6585,190.0,189.91,15.02340234]
[1735608024568,8.6585,190.0,189.92,15.02340234]
[1735608026272,8.6585,190.0,189.92,9.60935849]
[1735608032786,8.6585,190.0,189.94,9.60935849]
[1735608032970,8.3198,190.05,189.98,9.60935849]
[1735608034771,8.3198,190.05,189.99,9.60935849]
[1735608036187,8.3198,190.05,189.96,9.60935849]
[1735608036385,23.776884,190.04,189.94,9.60935849]
[1735608037107,23.776884,190.04,189.95,9.60935849]
[1735608038803,10.9507,190.05,189.95,9.60935849]
[1735608039088,8.3198,190.05,189.97,9.60935849]
[1735608039400,8.3198,190.05,189.99,9.60935849]
[1735608039608,8.3198,190.05,189.98,9.60935849]
[1735608040409,8.3198,190.05,189.97,9.60935849]
[1735608040706,8.3198,190.05,189.98,9.60935849]
[1735608044379,8.3198,190.05,189.97,9.60935849]
[1735608044803,8.3198,190.05,189.98,9.60935849]
[1735608045287,8.3198,190.05,189.96,0.78929036]
[1735608045288,8.3198,190.05,189.99,9.60935849]
[1735608046497,8.3198,190.05,189.95,9.60935849]
[1735608046675,8.3198,190.05,189.92,0.78927403]
[1735608046872,23.776884,190.04,189.92,0.78927403]
[1735608047077,20.0,190.01,189.91,9.60935849]
[1735608049279,20.0,190.01,189.92,9.60935849]
[1735608050484,20.0,190.01,189.93,9.60935849]
[1735608050783,8.3198,190.05,189.97,9.60935849]
[1735608051003,8.3198,190.05,189.99,9.60935849]
[1735608051192,8.3198,190.05,190.0,9.60935849]
[1735608053606,2.0472,190.09,190.02,9.60935849]
[1735608055279,2.0472,190.09,190.03,9.60935849]
[1735608055484,2.0472,190.09,190.05,9.60935849]
[1735608055702,8.3081,190.15,190.06,9.60935849]
[1735608055882,8.3081,190.15,190.07,9.60935849]
[1735608056709,8.3081,190.15,190.08,9.60935849]
[1735608057094,8.3081,190.15,190.09,9.60935849]
[1735608057297,8.3081,190.15,190.08,9.60935849]
[1735608057494,8.3081,190.15,190.09,9.60935849]
[1735608057810,8.3081,190.15,190.08,9.60935849]
[1735608058310,8.3081,190.15,190.08,16.65465525]
[1735608062118,2.0472,190.19,190.12,16.65465525]
[1735608062710,2.0472,190.19,190.11,16.65465525]
[1735608063402,2.0472,190.19,190.12,16.65465525]
[1735608063603,2.0472,190.19,190.11,16.65465525]
[1735608065717,2.0472,190.19,190.12,17.44339557]
[1735608066325,2.0472,190.19,190.13,16.65465525]
[1735608067424,2.0472,190.19,190.14,16.65465525]
[1735608067623,8.1157,190.26,190.17,16.65465525]
[1735608067924,8.1157,190.26,190.18,16.65465525]
[1735608068092,8.1157,190.26,190.17,16.65465525]
[1735608068298,8.1157,190.26,190.16,16.65465525]
[1735608068512,8.1157,190.26,190.14,16.65465525]
[1735608068730,8.1157,190.26,190.15,16.65465525]
[1735608069224,8.1157,190.26,190.14,37.44324328]
[1735608069428,10.7436,190.26,190.14,37.44324328]
[1735608069615,10.7436,190.26,190.15,16.65465525]
[1735608071526,10.7436,190.26,190.17,16.65465525]
[1735608072329,10.7436,190.26,190.16,16.65465525]
[1735608072828,10.7436,190.26,190.17,16.65465525]
[1735608073045,10.7436,190.26,190.16,16.65465525]
[1735608073739,23.776884,190.25,190.14,0.78858803]
[1735608074039,2.6282,190.24,190.12,16.65465525]
[1735608074218,2.6282,190.24,190.14,16.65465525]
[1735608074405,8.1157,190.26,190.14,16.65465525]
[1735608074606,28.500384,190.25,190.12,16.65465525]
[1735608076139,28.500384,190.25,190.13,16.65465525]
[1735608076523,28.500384,190.25,190.12,16.65465525]
[1735608076726,28.500384,190.25,190.13,16.65465525]
[1735608077738,26.404984,190.25,190.11,16.65465525]
[1735608077938,20.0,190.21,190.08,0.78872023]
[1735608078233,2.0954,190.18,190.06,10.66082889]
[1735608078533,20.0,190.16,190.05,0.78885702]
[1735608078717,23.776884,190.17,190.05,11.44968591]
[1735608078907,2.0954,190.18,190.07,10.66082889]
[1735608079111,20.0,190.17,190.08,10.66082889]
[1735608079634,20.0,190.17,190.07,10.66082889]
[1735608080633,43.776884,190.17,190.06,10.66082889]
[1735608080813,43.776884,190.17,190.05,11.44968591]
[1735608081211,6.5977,190.16,190.05,11.44968591]
[1735608081411,23.776884,190.15,190.03,10.66082889]
[1735608081617,2.0365,190.14,190.02,10.66082889]
[1735608082035,2.0365,190.14,190.03,10.66082889]
[1735608082338,20.0,190.13,190.05,10.66082889]
[1735608082547,20.0,190.13,190.06,10.66082889]
[1735608082720,2.0365,190.14,190.08,10.66082889]
[1735608083840,2.0365,190.19,190.13,10.66082889]
[1735608084434,2.0365,190.19,190.13,16.64611171]
[1735608084946,2.0365,190.19,190.14,16.64611171]
[1735608085112,2.0365,190.19,190.15,16.64611171]
[1735608085629,2.0365,190.19,190.14,16.64611171]
[1735608086039,2.0365,190.19,190.15,16.64611171]
[1735608086339,2.0365,190.19,190.14,16.64611171]
[1735608086841,6.5977,190.21,190.15,16.64611171]
[1735608087630,6.5977,190.21,190.16,16.64611171]
[1735608089524,2.0365,190.23,190.16,16.64611171]
[1735608090237,2.0365,190.23,190.17,16.64611171]
[1735608090548,2.0365,190.23,190.18,16.64611171]
[1735608090716,2.0365,190.23,190.17,16.64611171]
[1735608090918,2.0365,190.23,190.18,16.64611171]
[1735608091136,6.5977,190.25,190.2,16.64611171]
[1735608091436,6.5977,190.25,190.21,16.64611171]
[1735608091638,2.0365,190.28,190.21,16.64611171]
[1735608091853,2.0365,190.28,190.23,16.64611171]
[1735608092022,2.0365,190.28,190.24,16.64611171]
[1735608093037,6.5977,190.3,190.27,16.64611171]
[1735608093239,2.0143,190.32,190.28,16.64611171]
[1735608093460,2.0143,190.32,190.27,16.64611171]
[1735608093741,2.0143,190.32,190.28,16.64611171]
[1735608094537,6.5771,190.35,190.26,16.64611171]
[1735608094843,6.5771,190.35,190.24,16.64611171]
[1735608095161,6.5771,190.35,190.26,16.64611171]
[1735608095453,6.5771,190.35,190.27,16.64611171]
[1735608095941,6.5771,190.35,190.25,20.0]
[1735608096245,6.5771,190.35,190.23,16.64611171]
[1735608096430,6.5771,190.35,190.24,16.64611171]
[1735608097355,9.2039,190.35,190.22,16.64611171]
[1735608097643,9.2039,190.35,190.25,16.64611171]
[1735608097823,9.2039,190.35,190.26,16.64611171]
[1735608098750,9.2039,190.35,190.25,16.64611171]
[1735608099245,9.2039,190.35,190.26,16.64611171]
[1735608099552,6.5771,190.35,190.28,16.64611171]
[1735608099743,6.5771,190.35,190.29,16.64611171]
[1735608100061,6.5771,190.35,190.28,16.64611171]
[1735608100263,6.5771,190.35,190.27,16.64611171]
[1735608102544,6.5771,190.35,190.25,16.64611171]
[1735608103549,6.5771,190.35,190.24,16.64611171]
[1735608104126,6.5771,190.35,190.25,16.64611171]
[1735608104755,6.5771,190.35,190.22,0.78825215]
[1735608104756,6.5771,190.35,190.24,16.64611171]
[1735608104960,6.5771,190.35,190.23,16.64611171]
[1735608105354,6.5771,190.35,190.24,16.64611171]
[1735608106357,6.5771,190.35,190.25,16.64611171]
[1735608107757,6.5771,190.35,190.24,16.64611171]
[1735608108643,6.5771,190.35,190.25,16.64611171]
[1735608110356,6.5771,190.35,190.23,16.64611171]
[1735608110556,23.776884,190.34,190.23,16.64611171]
[1735608110739,1.9709,190.33,190.22,16.64611171]
[1735608111256,20.0,190.31,190.21,16.64611171]
[1735608112856,20.0,190.31,190.2,16.64611171]
[1735608113062,20.0,190.31,190.19,16.64611171]
[1735608113364,20.0,190.31,190.18,20.78840747]
[1735608113365,20.0,190.31,190.2,16.64611171]
[1735608114156,23.776884,190.3,190.2,16.64611171]
[1735608114660,23.776884,190.3,190.19,16.64611171]
[1735608116151,23.776884,190.3,190.2,16.64611171]
[1735608116847,6.3635,190.29,190.2,16.64611171]
[1735608118664,6.3635,190.29,190.19,16.64611171]
[1735608118962,2.0064,190.28,190.18,16.64611171]
[1735608120364,2.0064,190.28,190.17,10.64836458]
[1735608120965,2.0064,190.28,190.18,10.64836458]
[1735608121150,2.0064,190.28,190.19,10.64836458]
[1735608121354,2.0064,190.28,190.22,10.64836458]
[1735608121553,2.0064,190.28,190.23,11.43668729]
[1735608121880,2.0064,190.28,190.23,10.64836458]
[1735608122063,2.0064,190.28,190.18,0.78825114]
[1735608122064,2.0064,190.28,190.21,10.64836458]
[1735608124668,2.0064,190.28,190.2,10.64836458]
[1735608124970,2.0064,190.28,190.19,10.64836458]
[1735608125171,2.0064,190.28,190.2,10.64836458]
[1735608125566,2.0064,190.28,190.19,10.64836458]
[1735608125741,2.0064,190.28,190.2,10.64836458]
[1735608127364,2.0064,190.28,190.19,10.64836458]
[1735608127574,2.0064,190.28,190.17,10.64836458]
[1735608127943,2.0064,190.28,190.18,10.64836458]
[1735608128269,2.0064,190.28,190.19,10.64836458]
[1735608128443,2.0064,190.28,190.18,10.64836458]
[1735608128638,2.0064,190.28,190.19,10.64836458]
[1735608128943,2.0064,190.28,190.2,10.64836458]
[1735608130064,2.0064,190.28,190.19,10.64836458]
[1735608131177,2.0064,190.28,190.18,10.64836458]
[1735608131473,2.0064,190.28,190.17,10.64836458]
[1735608131684,2.0064,190.28,190.19,10.64836458]
[1735608131851,2.0064,190.28,190.21,10.64836458]
[1735608132182,2.0064,190.28,190.19,10.64836458]
[1735608132472,2.0064,190.28,190.18,10.64836458]
[1735608132847,2.0064,190.28,190.19,10.64836458]
[1735608135056,2.0064,190.28,190.18,10.64836458]
[1735608135368,2.0064,190.28,190.17,10.64836458]
[1735608136348,23.776884,190.27,190.13,13.93719814]
[1735608136549,23.776884,190.27,190.16,10.64836458]
[1735608137868,2.6279,190.26,190.14,10.64836458]
[1735608138065,2.6279,190.26,190.15,10.64836458]
[1735608138248,2.6279,190.26,190.15,11.43702882]
[1735608138775,2.6279,190.26,190.16,10.64836458]
[1735608140077,2.6279,190.26,190.15,10.64836458]
[1735608140293,23.776884,190.25,190.15,10.64836458]
[1735608140583,23.776884,190.23,190.11,10.64836458]
[1735608141555,20.0,190.2,190.1,10.64836458]
[1735608141775,20.0,190.19,190.09,10.64836458]
[1735608141977,2.1045,190.18,190.08,10.64836458]
[1735608143099,2.1045,190.18,190.07,10.64836458]
[1735608144195,2.1045,190.18,190.09,10.64836458]
[1735608144562,2.1045,190.18,190.09,11.43727721]
[1735608146284,2.1045,190.18,190.09,10.64836458]
[1735608146782,2.1045,190.18,190.08,10.64836458]
[1735608147166,2.1045,190.18,190.07,10.64836458]
[1735608148476,2.1045,190.18,190.08,10.64836458]
[1735608149770,2.1045,190.18,190.07,10.64836458]
[1735608150480,6.5164,190.17,190.06,10.64836458]
[1735608150878,6.5164,190.17,190.05,10.64836458]
[1735608151206,9.1457,190.17,190.05,10.64836458]
[1735608151915,6.5164,190.17,190.06,10.64836458]
[1735608152107,6.5164,190.17,190.07,10.64836458]
[1735608152885,6.5164,190.17,190.08,10.64836458]
[1735608153310,6.5164,190.17,190.09,10.64836458]
[1735608153792,2.1045,190.18,190.13,10.64836458]
[1735608153997,6.5164,190.21,190.17,10.64836458]
[1735608154198,2.1045,190.23,190.18,10.64836458]
[1735608154371,2.1045,190.23,190.2,10.64836458]
[1735608154576,2.1045,190.23,190.21,10.64836458]
[1735608154811,6.5164,190.26,190.21,10.64836458]
[1735608155183,6.5164,190.26,190.18,0.78853321]
[1735608155184,6.5164,190.26,190.2,10.64836458]
[1735608155398,6.5164,190.26,190.21,10.64836458]
[1735608155585,1.9893,190.28,190.22,10.64836458]
[1735608156495,1.9893,190.28,190.23,16.63076549]
[1735608156696,6.5533,190.31,190.23,16.63076549]
[1735608158896,6.5533,190.31,190.22,16.63076549]
[1735608159973,23.776884,190.3,190.19,16.63076549]
[1735608160174,23.776884,190.28,190.18,16.63076549]
[1735608161815,23.776884,190.28,190.19,16.63076549]
[1735608162015,23.776884,190.28,190.18,16.63076549]